bitfinex/quotes_SOLUSD_20250522
["timestamp","ask_amount","ask_price","bid_price","bid_amount"]
[1747921053973,19.71053668,177.57,177.49,18.64964886]
[1747921054890,5.63158191,177.57,177.52,26.0]
[1747921055072,19.70655462,177.61,177.53,76.92]
[1747921055280,19.70655462,177.61,177.54,33.78]
[1747921056959,19.70655462,177.61,177.47,5.6346196]
[1747921056960,45.71053668,177.57,177.43,210.86]
[1747921057162,45.71053668,177.57,177.47,18.64964886]
[1747921057372,45.71053668,177.57,177.48,33.78]
[1747921058558,1.6433,177.56,177.48,33.78]
[1747921058760,5.63158191,177.57,177.49,18.64964886]
[1747921058984,5.63158191,177.57,177.51,18.64964886]
[1747921059279,5.63094768,177.59,177.51,18.64964886]
[1747921059483,19.7083169,177.59,177.51,18.64964886]
[1747921059660,19.7083169,177.59,177.5,26.0]
[1747921059860,47.86305534,177.59,177.48,33.78]
[1747921060066,93.14489213,177.59,177.48,33.78]
[1747921060372,47.86305534,177.59,177.48,33.78]
[1747921061185,0.14216157,177.58,177.48,33.78]
[1747921062283,47.86305534,177.59,177.48,33.78]
[1747921062592,5.63094768,177.59,177.53,18.64964886]
[1747921062801,5.63094768,177.59,177.54,108.6]
[1747921063172,14.07519692,177.62,177.54,108.6]
[1747921063563,0.14216157,177.61,177.54,108.6]
[1747921063761,26.0,177.59,177.54,108.6]
[1747921065388,19.70942673,177.58,177.54,108.6]
[1747921067587,5.63126478,177.58,177.54,108.6]
[1747921068005,5.62967967,177.63,177.55,56.83116513]
[1747921068376,5.62967967,177.63,177.55,51.19894886]
[1747921069292,5.62841222,177.67,177.56,0.14216157]
[1747921069495,14.07103056,177.67,177.58,44.64964886]
[1747921069693,5.62809545,177.68,177.61,26.0]
[1747921069906,5.62809545,177.68,177.62,20.19314886]
[1747921070186,55.98865622,177.86,177.68,18.64964886]
[1747921070187,5.62651212,177.73,177.68,18.64964886]
[1747921070405,5.62492968,177.78,177.7,18.64964886]
[1747921070781,5.62492968,177.78,177.7,44.64964886]
[1747921070980,5.62366437,177.82,177.74,18.64964886]
[1747921071309,5.62366437,177.82,177.76,18.64964886]
[1747921071463,14.05789765,177.84,177.76,18.64964886]
[1747921071666,5.62271577,177.85,177.76,18.64964886]
[1747921071875,5.62271577,177.85,177.76,50.27515622]
[1747921072193,19.67950519,177.85,177.76,44.64964886]
[1747921072369,0.14216157,177.84,177.75,33.76]
[1747921073004,0.14216157,177.84,177.72,44.64964886]
[1747921073192,26.14216157,177.81,177.74,72.78]
[1747921073489,19.68614656,177.79,177.74,72.78]
[1747921075478,28.12222046,177.8,177.74,72.78]
[1747921076190,0.14216157,177.79,177.74,72.78]
[1747921076569,0.14216157,177.79,177.64,6.4449]
[1747921076570,8.2044,177.78,177.64,6.4449]
[1747921076769,0.14216157,177.77,177.7,33.74]
[1747921076995,45.42399836,177.77,177.64,25.09454886]
[1747921077194,45.42399836,177.77,177.69,33.74]
[1747921077401,0.14216157,177.77,177.69,33.74]
[1747921077696,19.68946894,177.76,177.69,59.74]
[1747921079796,14.06390639,177.76,177.69,59.74]
[1747921080792,14.06390639,177.76,177.66,72.76]
[1747921080997,6.53486157,177.73,177.66,72.76]
[1747921081607,0.14216157,177.71,177.66,72.76]
[1747921082189,0.14216157,177.71,177.59,70.68]
[1747921082190,64.07364722,177.71,177.59,70.68]
[1747921082396,0.14216157,177.71,177.61,26.0]
[1747921082579,19.6939005,177.72,177.63,26.0]
[1747921082894,19.6939005,177.72,177.64,33.74]
[1747921083202,45.42399836,177.71,177.64,33.74]
[1747921083401,0.14216157,177.69,177.64,33.74]
[1747921083581,5.62841222,177.67,177.64,33.74]
[1747921083970,19.69944278,177.67,177.61,33.74]
[1747921084373,19.69944278,177.67,177.59,70.68]
[1747921084374,0.14216157,177.66,177.59,70.68]
[1747921084573,0.14216157,177.66,177.59,104.42]
[1747921084778,19.69944278,177.67,177.59,104.42]
[1747921085877,0.14216157,177.66,177.6,33.74]
[1747921086277,0.14216157,177.64,177.59,70.68]
[1747921086473,45.42399836,177.62,177.56,33.74]
[1747921086804,26.14216157,177.57,177.48,70.7]
[1747921086993,45.28183679,177.54,177.48,70.7]
[1747921087194,45.42399836,177.53,177.48,70.7]
[1747921087380,0.14216157,177.51,177.45,33.74]
[1747921087698,19.71830985,177.5,177.45,33.74]
[1747921088298,5.63380281,177.5,177.45,33.74]
[1747921088883,5.63316809,177.52,177.45,33.74]
[1747921089430,19.71608832,177.52,177.45,33.74]
[1747921089604,5.63316809,177.52,177.45,33.74]
[1747921089806,14.08084062,177.55,177.45,33.74]
[1747921090226,0.14216157,177.54,177.43,210.56]
[1747921090383,0.14216157,177.54,177.46,26.0]
[1747921090788,0.14216157,177.54,177.44,33.76]
[1747921090789,26.0,177.52,177.44,33.76]
[1747921091815,5.63348543,177.51,177.44,33.76]
[1747921092310,19.71719902,177.51,177.44,33.76]
[1747921092488,19.71719902,177.51,177.43,210.56]
[1747921092681,19.71719902,177.51,177.44,33.76]
[1747921092880,5.63348543,177.51,177.44,33.76]
[1747921093488,19.71719902,177.51,177.44,33.76]
[1747921095110,26.0,177.47,177.41,70.7]
[1747921095316,27.6616,177.47,177.41,104.46]
[1747921095906,5.63507269,177.46,177.41,104.46]
[1747921096107,31.63507269,177.46,177.41,104.46]
[1747921096411,45.72275442,177.46,177.41,104.46]
[1747921096993,5.63507269,177.46,177.41,104.46]
[1747921097195,19.72275442,177.46,177.41,104.46]
[1747921097399,5.63507269,177.46,177.41,104.46]
[1747921097603,5.63380281,177.5,177.41,136.09656308]
[1747921097816,19.71567959,177.53,177.42,24.28584516]
[1747921098126,5.63285078,177.53,177.45,26.0]
[1747921098438,5.63285078,177.53,177.46,58.81594886]
[1747921098590,31.63285078,177.53,177.46,40.1663]
[1747921099004,14.07888257,177.58,177.47,18.64964886]
[1747921099205,14.07895477,177.57,177.47,18.64964886]
[1747921099515,26.0,177.56,177.46,40.1663]
[1747921099692,14.07895477,177.57,177.47,18.64964886]
[1747921100111,26.0,177.56,177.47,18.64964886]
[1747921100309,26.0,177.56,177.47,24.28430609]
[1747921100724,26.0,177.56,177.47,18.64964886]
[1747921100896,14.07895477,177.57,177.47,18.64964886]
[1747921101303,26.0,177.57,177.47,24.28433487]
[1747921101498,26.0,177.57,177.46,40.1663]
[1747921101899,19.71164676,177.56,177.46,45.80134642]
[1747921102221,19.71164676,177.56,177.47,18.64964886]
[1747921102402,5.63189907,177.56,177.47,18.64964886]
[1747921103788,5.63189907,177.56,177.48,0.14216157]
[1747921103997,5.63126478,177.58,177.47,18.64964886]
[1747921104696,5.63126478,177.58,177.48,26.0]
[1747921104892,19.70942673,177.58,177.48,26.0]
[1747921105107,19.70942673,177.58,177.48,31.634381]
[1747921105301,5.63126478,177.58,177.49,18.79181043]
[1747921105520,19.70942673,177.58,177.5,66.7]
[1747921105906,26.0,177.53,177.43,210.72]
[1747921106422,26.0,177.55,177.43,210.72]
[1747921106617,26.0,177.55,177.44,18.64964886]
[1747921106796,26.0,177.55,177.43,236.72]
[1747921106993,19.71386729,177.54,177.43,236.72]
[1747921107913,0.14216157,177.49,177.41,66.7]
[1747921108121,0.14216157,177.47,177.41,66.7]
[1747921108429,0.14216157,177.48,177.41,66.7]
[1747921108627,44.79181043,177.51,177.41,66.7]
[1747921108922,26.0,177.51,177.41,66.7]
[1747921109106,26.14216157,177.51,177.41,66.7]
[1747921109427,26.0,177.51,177.41,66.7]
[1747921109802,47.88192878,177.52,177.41,66.7]
[1747921110013,19.71608832,177.52,177.42,18.64964886]
[1747921110206,5.63316809,177.52,177.44,18.64964886]
[1747921110406,5.63316809,177.52,177.44,24.98674886]
[1747921111023,5.63221627,177.55,177.44,24.98674886]
[1747921111317,19.71275696,177.55,177.44,30.62222781]
[1747921111523,19.71275696,177.55,177.44,11.97257895]
[1747921111710,19.71275696,177.55,177.45,26.0]
[1747921113226,14.08054069,177.55,177.46,33.78]
[1747921113423,64.17205234,177.54,177.41,66.7]
[1747921113723,90.17205234,177.52,177.42,33.78]
[1747921113925,18.79181043,177.5,177.42,33.78]
[1747921114305,45.38024191,177.48,177.34,6.569]
[1747921114512,0.14216157,177.42,177.32,33.78]
[1747921114901,18.64964886,177.45,177.32,33.78]
[1747921115103,26.14216157,177.45,177.32,39.4194076]
[1747921115305,26.14216157,177.45,177.33,18.64964886]
[1747921115306,26.0,177.44,177.33,18.64964886]
[1747921115504,0.14216157,177.45,177.32,33.78]
[1747921115735,90.17205234,177.45,177.33,33.78]
[1747921115913,90.17205234,177.45,177.31,285.28105841]
[1747921115914,90.17205234,177.45,177.31,277.42]
[1747921116116,90.17205234,177.45,177.32,33.78]
[1747921116832,18.79181043,177.43,177.32,33.78]
[1747921117011,26.0,177.4,177.31,277.42]
[1747921117217,0.14216157,177.39,177.31,277.42]
[1747921119036,19.72942501,177.4,177.31,277.42]
[1747921119206,19.72942501,177.4,177.32,33.78]
[1747921119906,26.14216157,177.39,177.32,33.78]
[1747921120311,26.0,177.39,177.32,33.78]
[1747921120511,45.72942501,177.4,177.32,33.78]
[1747921120924,26.0,177.37,177.32,33.78]
[1747921121229,5.63824988,177.36,177.32,33.78]
[1747921121616,5.63824988,177.36,177.31,277.42]
[1747921121617,19.73387459,177.36,177.31,277.42]
[1747921122429,5.63824988,177.36,177.31,277.42]
[1747921123741,5.63729635,177.39,177.32,18.64964886]
[1747921124047,5.63729635,177.39,177.33,33.8]
[1747921124215,19.73053723,177.39,177.31,277.42]
[1747921124423,45.73053723,177.39,177.31,277.42]
[1747921124615,45.73053723,177.39,177.32,33.8]
[1747921126245,26.0,177.35,177.31,66.7]
[1747921126415,26.0,177.36,177.31,66.7]
[1747921126611,19.73053723,177.39,177.31,66.7]
[1747921126829,19.73053723,177.39,177.32,33.8]
[1747921127211,14.09324088,177.39,177.32,33.8]
[1747921128642,5.63697857,177.4,177.32,33.8]
[1747921129239,0.14216157,177.42,177.32,33.8]
[1747921131327,19.72831294,177.41,177.32,33.8]
[1747921133132,5.63666084,177.41,177.35,26.0]
[1747921133336,19.72534321,177.44,177.35,31.63845654]
[1747921133538,19.72534321,177.44,177.37,26.0]
[1747921133717,5.63570784,177.44,177.38,33.8]
[1747921134828,19.72497745,177.44,177.35,33.8]
[1747921135623,18.62562122,177.44,177.35,33.8]
[1747921135819,75.07101763,177.43,177.34,62.82]
[1747921136049,49.07101763,177.39,177.34,62.82]
[1747921136224,30.2792072,177.38,177.34,62.82]
[1747921136426,26.0,177.34,177.28,33.8]
[1747921136967,26.0,177.35,177.28,33.8]
[1747921137635,19.73610014,177.34,177.28,33.8]
[1747921137946,0.14216157,177.33,177.27,273.7]
[1747921138262,26.0,177.3,177.27,273.7]
[1747921138960,26.0,177.31,177.27,273.7]
[1747921139254,19.73610014,177.34,177.27,273.7]
[1747921139464,26.0,177.33,177.27,273.7]
[1747921139646,5.63952176,177.32,177.27,273.7]
[1747921139842,26.0,177.35,177.27,273.7]
[1747921140362,26.0,177.33,177.27,273.7]
[1747921141647,19.73610014,177.34,177.27,273.7]
[1747921142162,5.63888575,177.34,177.27,273.7]
[1747921142739,5.63888575,177.34,177.28,33.8]
[1747921142957,19.73610014,177.34,177.28,33.8]
[1747921143144,0.14216157,177.32,177.27,273.7]
[1747921143348,30.2792072,177.3,177.27,273.7]
[1747921143563,30.2792072,177.31,177.27,62.82]
[1747921143739,5.64015792,177.3,177.27,62.82]
[1747921145067,0.14216157,177.29,177.17,12.26131335]
[1747921145246,30.2792072,177.28,177.18,96.64]
[1747921145644,19.74500732,177.26,177.19,33.8]
[1747921145861,30.2792072,177.23,177.19,33.8]
[1747921146169,30.2792072,177.24,177.19,33.8]
[1747921146557,30.2792072,177.25,177.19,33.8]
[1747921147264,30.2792072,177.24,177.19,33.8]
[1747921147563,5.64143066,177.26,177.19,33.8]
[1747921147564,30.2792072,177.23,177.19,33.8]
[1747921147745,35.9222296,177.21,177.18,62.84]
[1747921147944,30.2792072,177.19,177.18,62.84]
[1747921148653,30.2792072,177.19,177.14,33.8]
[1747921148864,30.2792072,177.15,177.11,62.84]
[1747921149041,26.14216157,177.16,177.11,62.84]
[1747921149042,30.2792072,177.12,177.11,62.84]
[1747921149246,30.42136877,177.12,177.11,62.84]
[1747921149448,30.42136877,177.12,177.07,7.86105841]
[1747921149673,30.2792072,177.08,177.07,7.86105841]
[1747921150170,30.2792072,177.08,177.04,62.86]
[1747921150381,30.2792072,177.05,177.04,62.86]
[1747921150589,26.0,177.08,177.04,62.86]
[1747921150888,30.2792072,177.1,177.04,96.68]
[1747921151173,5.64525234,177.14,177.05,26.0]
[1747921151759,30.2792072,177.17,177.08,24.29681398]
[1747921152069,5.64397787,177.18,177.1,26.0]
[1747921152254,14.24818787,177.23,177.13,18.64964886]
[1747921152255,30.2792072,177.23,177.13,18.64964886]
[1747921152462,5.64206725,177.24,177.16,26.0]
[1747921152660,35.92099925,177.25,177.16,26.0]
[1747921152951,5.64179205,177.25,177.16,26.0]
[1747921153150,5.64179205,177.25,177.17,18.64964886]
[1747921153362,5.64179205,177.25,177.19,18.64964886]
[1747921153561,30.2792072,177.28,177.19,18.64964886]
[1747921153868,35.92024818,177.28,177.2,31.64334085]
[1747921154167,5.64104098,177.28,177.2,26.0]
[1747921154387,30.2792072,177.32,177.21,18.64964886]
[1747921154585,30.2792072,177.32,177.24,26.0]
[1747921154586,5.63952176,177.32,177.24,26.0]
[1747921154749,5.63952176,177.32,177.25,96.7]
[1747921155462,5.63952176,177.32,177.26,18.64964886]
[1747921155858,5.63888575,177.34,177.26,18.64964886]
[1747921156352,5.63888575,177.34,177.27,0.14216157]
[1747921156680,5.63888575,177.34,177.28,18.64964886]
[1747921157184,5.63888575,177.34,177.29,0.14216157]
[1747921157381,5.63888575,177.34,177.3,33.82]
[1747921157747,1.413827,177.35,177.31,18.64964886]
[1747921157947,1.413827,177.35,177.34,26.0]
[1747921158163,7.0523948,177.35,177.34,107.50964886]
[1747921158375,7.0523948,177.35,177.34,62.86]
[1747921159452,1.413827,177.35,177.34,81.50964886]
[1747921159876,1.413827,177.35,177.34,107.65181043]
[1747921160449,1.413827,177.35,177.34,81.65181043]
[1747921160778,1.413827,177.35,177.34,292.67181043]
[1747921162657,7.0523948,177.35,177.34,299.88]
[1747921162854,7.0523948,177.35,177.34,333.7]
[1747921163087,7.0523948,177.35,177.34,307.7]
[1747921163784,1.413827,177.35,177.34,307.7]
[1747921164155,7.0523948,177.35,177.34,307.7]
[1747921164379,1.413827,177.35,177.34,307.7]
[1747921164574,7.0523948,177.35,177.34,307.7]
[1747921164764,1.413827,177.35,177.34,307.7]
[1747921164968,1.413827,177.35,177.34,326.49181043]
[1747921165174,5.63507269,177.46,177.38,44.64964886]
[1747921165486,5.63507269,177.46,177.4,18.64964886]
[1747921165683,5.63507269,177.46,177.39,59.8]
[1747921166057,1.70966157,177.53,177.39,59.8]
[1747921166058,45.4525724,177.48,177.39,59.8]
[1747921166360,45.4525724,177.47,177.39,59.8]
[1747921166961,45.4525724,177.48,177.39,59.8]
[1747921167282,19.71942081,177.49,177.39,59.8]
[1747921167686,19.71942081,177.49,177.43,26.0]
[1747921167861,19.71942081,177.49,177.44,94.7]
[1747921168066,19.71626667,177.52,177.44,94.7]
[1747921168613,19.71626667,177.52,177.45,18.64964886]
[1747921169193,19.71626667,177.52,177.44,94.7]
[1747921170915,5.63316809,177.52,177.45,18.64964886]
[1747921171717,19.71608832,177.52,177.45,18.64964886]
[1747921171898,5.63316809,177.52,177.47,26.0]
[1747921172103,5.63253351,177.54,177.48,18.64964886]
[1747921172413,14.08068926,177.55,177.49,33.8]
[1747921172919,14.08068926,177.55,177.5,33.8]
[1747921173418,45.4525724,177.54,177.51,33.78]
[1747921173720,59.53326166,177.55,177.51,33.78]
[1747921174222,5.63285078,177.53,177.51,33.78]
[1747921174395,51.08542318,177.53,177.51,33.78]
[1747921174600,45.4525724,177.52,177.5,33.78]
[1747921174794,65.16755014,177.53,177.5,33.78]
[1747921175190,19.71497774,177.53,177.5,33.78]
[1747921176424,5.63253351,177.54,177.5,33.78]
[1747921176595,19.71386729,177.54,177.5,33.78]
[1747921177599,65.16643969,177.54,177.5,33.78]
[1747921177802,19.71386729,177.54,177.5,33.78]
[1747921178529,19.71386729,177.54,177.44,271.7]
[1747921178832,49.95354218,177.54,177.45,33.78]
[1747921179001,49.95354218,177.54,177.44,271.7]
[1747921179200,49.95354218,177.54,177.45,33.78]
[1747921179401,19.71386729,177.54,177.45,33.78]
[1747921179809,30.23967489,177.53,177.45,33.78]
[1747921180419,19.71608832,177.52,177.45,33.78]
[1747921180592,5.63316809,177.52,177.46,18.64964886]
[1747921181230,5.63316809,177.52,177.45,33.78]
[1747921181605,75.95576321,177.52,177.44,271.7]
[1747921181814,75.95576321,177.52,177.45,33.78]
[1747921182143,75.95576321,177.52,177.44,271.7]
[1747921182144,26.0,177.49,177.44,271.7]
[1747921182313,45.71608832,177.52,177.45,33.78]
[1747921182314,26.0,177.46,177.45,33.78]
[1747921183814,26.0,177.46,177.44,210.8]
[1747921184021,26.0,177.45,177.44,210.8]
[1747921184341,5.63570784,177.44,177.43,33.78]
[1747921184501,35.87538273,177.44,177.43,33.78]
[1747921184706,26.0,177.41,177.4,92.76]
[1747921186536,31.63666084,177.41,177.4,58.98]
[1747921186836,61.87633573,177.41,177.4,58.98]
[1747921187206,31.63666084,177.41,177.4,58.98]
[1747921187408,5.63666084,177.41,177.4,92.76]
[1747921188741,26.0,177.43,177.4,92.76]
[1747921189035,5.63507269,177.46,177.4,92.76]
[1747921190041,1.6465,177.54,177.42,0.14216157]
[1747921190338,28.15482619,177.59,177.42,0.14216157]
[1747921190339,5.63285078,177.53,177.44,0.14216157]
[1747921191444,5.63285078,177.53,177.44,18.79181043]
[1747921192239,19.71497774,177.53,177.44,18.79181043]
[1747921193457,5.63285078,177.53,177.44,18.79181043]
[1747921193759,5.63285078,177.53,177.48,0.14216157]
[1747921193964,5.63285078,177.53,177.49,90.94]
[1747921194259,14.07751194,177.59,177.5,18.79181043]
[1747921194419,26.0,177.58,177.5,18.79181043]
[1747921194825,14.07543614,177.62,177.5,24.42552261]
[1747921195025,5.62999662,177.62,177.52,18.79181043]
[1747921195238,5.62936275,177.64,177.52,44.79181043]
[1747921195517,14.07048336,177.68,177.54,18.79181043]
[1747921195717,26.0,177.65,177.56,18.79181043]
[1747921196017,26.0,177.65,177.59,0.14216157]
[1747921196253,26.0,177.65,177.6,33.78]
[1747921196428,5.62841222,177.67,177.6,33.78]
[1747921196827,26.0,177.68,177.6,33.78]
[1747921197128,19.69500871,177.71,177.6,33.78]
[1747921197540,47.83073545,177.71,177.6,33.78]
[1747921197914,47.83073545,177.71,177.61,18.64964886]
[1747921198141,26.0,177.68,177.61,18.64964886]
[1747921198539,19.69500871,177.71,177.62,0.14216157]
[1747921198742,19.69500871,177.71,177.63,18.64964886]
[1747921199049,26.0,177.68,177.63,18.64964886]
[1747921199754,26.0,177.68,177.62,210.84216157]
[1747921200060,26.0,177.7,177.62,210.84216157]
[1747921200368,19.69500871,177.71,177.62,210.7]
[1747921200369,56.23967489,177.68,177.62,210.7]
[1747921200545,26.0,177.64,177.63,33.76]
[1747921201056,31.62936275,177.64,177.63,33.76]
[1747921201376,31.62936275,177.64,177.62,210.7]
[1747921202267,26.0,177.6,177.59,90.88]
[1747921202763,26.0,177.62,177.59,90.88]
[1747921202969,31.62936275,177.64,177.59,90.88]
[1747921203364,5.62936275,177.64,177.59,90.88]
[1747921204178,5.62841222,177.67,177.6,0.14216157]
[1747921204541,26.0,177.64,177.59,90.88]
[1747921205039,31.62950695,177.64,177.59,90.88]
[1747921205541,5.62950695,177.64,177.59,90.88]
[1747921205853,14.06880345,177.7,177.6,0.14216157]
[1747921206065,5.62714534,177.71,177.6,0.14216157]
[1747921206373,14.06944678,177.69,177.6,0.14216157]
[1747921206671,14.06944678,177.69,177.59,90.88]
[1747921206983,19.69722549,177.69,177.59,90.88]
[1747921207159,19.69722549,177.69,177.6,0.14216157]
[1747921207481,5.62777871,177.69,177.6,18.79181043]
[1747921207770,5.62777871,177.69,177.6,24.83011043]
[1747921208874,5.62682871,177.72,177.62,0.14216157]
[1747921209104,5.6252461,177.77,177.66,18.79181043]
[1747921209381,5.6252461,177.77,177.68,18.79181043]
[1747921209632,5.6252461,177.77,177.67,301.44]
[1747921209633,5.6252461,177.77,177.7,18.79181043]
[1747921209752,14.06039195,177.81,177.7,18.79181043]
[1747921209957,26.0,177.8,177.7,18.79181043]
[1747921210177,14.06039195,177.81,177.7,18.79181043]
[1747921210382,5.62366437,177.82,177.7,18.79181043]
[1747921210682,5.62366437,177.82,177.72,18.79181043]
[1747921210974,40.05779102,177.84,177.73,39.36637621]
[1747921211146,40.05779102,177.84,177.73,33.74]
[1747921211349,40.05779102,177.84,177.73,39.36643838]
[1747921211580,5.62271577,177.85,177.73,39.36643838]
[1747921211581,5.62271577,177.85,177.77,0.14216157]
[1747921211758,5.62271577,177.85,177.79,0.14216157]
[1747921212124,5.62271577,177.85,177.78,55.26]
[1747921212125,45.67950519,177.85,177.8,33.74]
[1747921212249,19.67950519,177.85,177.8,33.74]
[1747921212557,26.0,177.84,177.8,33.74]
[1747921212993,19.67950519,177.85,177.8,33.74]
[1747921212994,14.05678942,177.85,177.8,33.74]
[1747921213192,26.0,177.83,177.78,55.26]
[1747921213395,26.0,177.84,177.81,33.74]
[1747921215063,5.62334814,177.83,177.81,33.74]
[1747921216056,5.62208354,177.87,177.81,33.74]
[1747921216975,58.34248678,177.92,177.81,33.74]
[1747921216976,14.05217302,177.91,177.82,0.14216157]
[1747921217187,26.0,177.9,177.82,0.14216157]
[1747921217390,14.05217302,177.91,177.82,0.14216157]
[1747921217778,26.0,177.9,177.82,0.14216157]
[1747921218205,26.0,177.9,177.82,18.79181043]
[1747921218376,5.62050359,177.92,177.82,18.79181043]
[1747921218582,45.67176258,177.92,177.82,18.79181043]
[1747921218889,45.67176258,177.92,177.82,0.14216157]
[1747921219298,26.0,177.89,177.83,88.94]
[1747921219805,26.0,177.88,177.83,88.94]
[1747921220011,26.0,177.87,177.81,210.46]
[1747921220177,26.0,177.84,177.83,33.72]
[1747921221102,31.62303193,177.84,177.83,33.72]
[1747921221811,26.0,177.8,177.79,33.72]
[1747921221982,56.23967489,177.8,177.79,33.72]
[1747921222378,26.0,177.76,177.74,33.72]
[1747921222578,56.23967489,177.76,177.74,33.72]
[1747921222801,26.0,177.76,177.73,33.72]
[1747921223182,5.62587904,177.75,177.73,33.72]
[1747921223993,44.30066409,177.8,177.73,33.72]
[1747921224217,26.0,177.79,177.73,33.72]
[1747921224730,26.0,177.74,177.73,55.2]
[1747921224906,56.23967489,177.74,177.71,33.72]
[1747921225109,35.86618701,177.73,177.71,33.72]
[1747921225291,18.64964886,177.72,177.7,210.38]
[1747921225496,26.0,177.69,177.68,33.72]
[1747921226346,30.23967489,177.7,177.68,33.72]
[1747921226626,56.23967489,177.69,177.68,33.72]
[1747921227305,31.62777871,177.69,177.68,33.72]
[1747921227919,19.69057664,177.75,177.68,33.72]
[1747921228122,26.0,177.72,177.68,33.72]
[1747921228437,5.62587904,177.75,177.68,33.72]
[1747921228598,19.69057664,177.75,177.68,33.72]
[1747921228999,26.0,177.72,177.68,33.72]
[1747921229306,5.62556255,177.76,177.68,33.72]
[1747921229803,26.0,177.73,177.68,33.72]
[1747921230107,5.62556255,177.76,177.69,0.14216157]
[1747921230316,26.0,177.75,177.69,0.14216157]
[1747921230498,5.62556255,177.76,177.69,0.14216157]
[1747921231215,26.0,177.75,177.69,5.76981977]
[1747921231527,26.0,177.76,177.7,18.64964886]
[1747921231899,26.0,177.76,177.69,0.14216157]
[1747921232229,5.62531302,177.77,177.7,88.94]
[1747921232230,26.0,177.74,177.7,88.94]
[1747921233331,5.62651212,177.73,177.7,88.94]
[1747921233718,31.6262398,177.74,177.7,88.94]
[1747921234010,26.0,177.77,177.71,0.14216157]
[1747921234222,31.62528581,177.77,177.71,0.14216157]
[1747921235319,15.66186174,177.83,177.72,5.62682871]
[1747921235627,31.62366437,177.82,177.74,0.14216157]
[1747921235832,5.62366437,177.82,177.76,0.14216157]
[1747921236137,5.62271577,177.85,177.76,18.79181043]
[1747921236519,26.0,177.82,177.76,0.14216157]
[1747921236840,30.23967489,177.82,177.73,210.44]
[1747921237023,26.0,177.77,177.74,88.94]
[1747921237225,5.62556255,177.76,177.74,88.94]
[1747921238014,26.0,177.74,177.73,210.44]
[1747921238237,26.0,177.74,177.73,244.16]
[1747921238739,26.0,177.74,177.73,210.44]
[1747921239539,31.62619556,177.74,177.73,210.44]
[1747921239915,31.62619556,177.74,177.72,55.22]
[1747921240415,5.62595326,177.75,177.72,55.22]
[1747921242424,5.62558414,177.76,177.72,55.22]
[1747921242925,5.6246133,177.79,177.73,0.14216157]
[1747921243344,45.68614656,177.79,177.72,55.22]
[1747921244144,26.0,177.76,177.72,55.22]
[1747921244841,26.0,177.78,177.72,55.22]
[1747921245151,26.0,177.78,177.73,33.72]
[1747921245526,19.68614656,177.79,177.73,33.72]
[1747921246044,5.6246133,177.79,177.74,0.14216157]
[1747921246548,1.5912,177.83,177.74,0.14216157]
[1747921246549,5.62398065,177.81,177.74,18.79181043]
[1747921247447,20.65761969,177.85,177.74,18.79181043]
[1747921247448,5.62303193,177.84,177.74,18.79181043]
[1747921247628,5.62208354,177.87,177.76,18.79181043]
[1747921247821,5.62208354,177.87,177.78,24.97171043]
[1747921248551,31.62208354,177.87,177.78,24.97171043]
[1747921248719,5.62113546,177.9,177.78,24.97171043]
[1747921248920,5.62113546,177.9,177.82,0.14216157]
[1747921249141,5.62113546,177.9,177.83,87.0]
[1747921249652,26.0,177.87,177.83,87.0]
[1747921250146,26.0,177.9,177.83,87.0]
[1747921251722,5.62176748,177.88,177.83,87.0]
[1747921252143,19.67618618,177.88,177.83,87.0]
[1747921252429,5.62176748,177.88,177.84,86.98]
[1747921253758,5.62176748,177.88,177.79,0.14216157]
[1747921253759,5.62303193,177.84,177.79,0.14216157]
[1747921253955,5.62303193,177.84,177.8,86.98]
[1747921254338,5.62303193,177.84,177.8,53.26]